[Event "11th Festival Palmanova-A 2022"]
[Site "Strassoldo"]
[Date "2022.12.10"]
[Round "5.12"]
[White "Budai, Federico"]
[Black "Hercegovac, Neven"]
[Result "0-1"]
[ECO "B06"]
[WhiteElo "1748"]
[BlackElo "2230"]
[Annotator "TA"]
[PlyCount "96"]
[EventDate "2022.12.08"]
[EventType "swiss"]
[EventCountry "ITA"]
[SourceTitle "playchess.com"]
[Source "ChessBase"]
[SourceQuality "1"]
[TimeControl "5400+30"]

{[%evp 9,95,24,66,51,44,54,51,31,27,22,15,12,23,3,0,-35,-23,-45,-32,-34,-25,-29,-30,-81,-74,-80,-84,-82,-76,-86,-84,-99,-97,-82,-103,-109,-60,-108,-39,-47,-48,-54,-54,-57,0,-13,305,-7,-19,-68,0,0,8,0,0,0,66,66,64,-8,1,-64,-15,-17,-15,-42,-14,-112,-112,-130,-85,-100,-94,-225,-116,-145,-83,-154,-140,-150,-139,-681,-650,-29997,-29998,-29998,-29999,-29999]} 1. e4 {[%emt 0:02:30]} g6 {[%emt 0:00:07]} 2. d4 {[%emt 0:00:11]} Bg7 {[%emt 0:00:02]} 3. Nf3 {[%emt 0:00:20]} d6 {[%emt 0:00:02]} 4. Nc3 {[%emt 0:00:17]} a6 {[%emt 0:00:12]} 5. a4 {[%emt 0:00:48]} b6 {[%emt 0:00:36]} 6. g3 {[%emt 0:03:08] B06: Modern Defence.} Bb7 {[%emt 0:00:12]} 7. Bg2 {[%emt 0:00:12]} Nd7 {[%emt 0:00:28]} 8. Be3 {[%emt 0:01:08] White is slightly better.} Ngf6 {[%emt 0:00:15][%cal Bg8f6,Bf6g4,Bg4e3][%mdl 32] [#]} 9. Qd3 $146 {[%emt 0:02:10]} ({Predecessor:} 9. d5 c5 10. dxc6 Bxc6 11. Nd4 Bb7 12. O-O Rb8 13. Nd5 O-O 14. Re1 e6 15. Nb4 {1-0 (41) Kosten,A (2514)-Voiska,M (2353) Saint Affrique 2003}) 9... O-O {[%emt 0:00:10][%cal Ob6b5]} 10. O-O {[%emt 0:00:10]} e5 {[%emt 0:00:27]} 11. d5 {[%emt 0:06:05]} Ng4 {[%emt 0:01:14]} 12. Nd2 {[%emt 0:10:17]} Nxe3 {[%emt 0:00:27]} 13. fxe3 {[%emt 0:01:24]} a5 {[%emt 0:00:35]} 14. Nb5 {[%emt 0:02:05]} Nc5 {[%emt 0:00:44]} 15. Qe2 {[%emt 0:03:08]} h5 {[%emt 0:01:02]} 16. c4 {[%emt 0:10:34]} (16. Nb3 $11) 16... Bh6 $17 {[%emt 0:01:10]} 17. Ra3 {[%emt 0:09:07]} Bc8 {[%emt 0:02:47]} 18. h3 {[%emt 0:01:14]} Qe7 {[%emt 0:05:08]} 19. Nb3 {[%emt 0:02:11]} Na6 {[%emt 0:00:03]} 20. Raa1 {[%emt 0:01:55]} Qg5 {[%emt 0:00:22]} 21. Rf3 {[%emt 0:02:12]} Bd7 {[%emt 0:01:39]} 22. Kh2 {[%emt 0:01:21]} Kg7 {[%emt 0:04:15]} ({Black should play} 22... f5 $17 23. exf5 Rxf5) 23. Re1 {[%emt 0:10:13]} (23. h4 $1 $15 Qd8 24. Bh3) 23... Rh8 {[%emt 0:03:29]} (23... h4 $17) 24. h4 $15 {[%emt 0:01:53]} Qe7 {[%emt 0:01:28]} 25. Bh3 {[%emt 0:00:29]} Bxh3 {[%emt 0:01:44]} 26. Kxh3 {[%emt 0:00:12]} Rag8 {[%emt 0:04:04]} (26... Qd7+ $15 27. Kh2 Rhf8) 27. Ref1 {[%emt 0:01:05][%cal Oc4c5]} Rh7 $2 {[%emt 0:02:08][%mdl 8192]} (27... Rf8 $11 {and Black is okay.}) 28. Qf2 $2 {[%emt 0:03:22]} (28. Rxf7+ $18 Qxf7 29. Rxf7+ Kxf7 30. c5 Nxc5 31. Nxc5 bxc5 32. Nxc7) 28... Kf8 $11 {[%emt 0:00:29] And now ...Qd7+ would win.} 29. Rf6 {[%emt 0:03:47]} (29. c5 $11 Nxc5 30. Nxc5 bxc5 31. Qd2) 29... Ke8 {[%emt 0:04:03]} ({Black should try} 29... Qd7+ $1 $15 30. Re6 Bxe3 31. Qxe3 Kg7) 30. Kh2 {[%emt 0:00:33][%cal Oc4c5]} Qd7 $1 {[%emt 0:02:14] Against c5} 31. Qf3 {[%emt 0:02:28]} Rf8 {[%emt 0:02:53] Hoping for ...Bg7.} 32. Qf2 {[%emt 0:07:33][%cal Oc4c5]} Bg7 {[%emt 0:05:57] Against c5} (32... g5 $11) 33. Rf3 $14 {[%emt 0:00:13][%cal Oc4c5]} Bh8 {[%emt 0:01:05] Against c5} 34. Qg2 {[%emt 0:01:47]} (34. c5 $1 $14) 34... f6 {[%emt 0:09:49]} 35. Qh3 {[%emt 0:03:56]} (35. c5 $11) 35... Rhf7 {[%emt 0:00:21]} (35... Qg4 $15 {should be considered.}) 36. Qxd7+ $11 {[%emt 0:00:46]} Kxd7 {[%emt 0:00:03]} 37. Kh3 {[%emt 0:00:31]} Bg7 {[%emt 0:02:57]} 38. g4 {[%emt 0:01:01]} (38. Kg2 $11 {remains equal.}) 38... hxg4+ $17 {[%emt 0:00:02]} 39. Kxg4 {[%emt 0:00:10]} Bh6 {[%emt 0:00:45]} 40. Nc3 {[%emt 0:02:44]} Nb4 {[%emt 0:00:11]} 41. R1f2 {[%emt 0:00:57]} (41. c5 $17) 41... Ke7 {[%emt 0:01:31]} (41... Nd3 $19 42. Rd2 f5+ 43. Kh3 fxe4) 42. Nc1 {[%emt 0:04:12]} Rg7 {[%emt 0:05:50]} (42... Rh7 $142 43. b3 Rg8) 43. Kh3 {[%emt 0:00:50]} (43. Rg2 $142) 43... g5 {[%emt 0:00:35]} 44. Rg2 {[%emt 0:00:46] Prevents g4+.} Nc2 {[%emt 0:05:20] Threatens to win with ...Ne1.} 45. hxg5 $2 {[%emt 0:00:29][%mdl 8192]} (45. Rg4 $17) 45... Bxg5 $19 {[%emt 0:01:52] ( -> ...Rh8+)} 46. Rxc2 {[%emt 0:00:32] [#] Black must now prevent Rg3.} Bf4 {[%emt 0:00:28][%mdl 576] Against Rg3. Black mates.} 47. Rxf4 {[%emt 0:00:26]} exf4 {[%emt 0:00:02][%cal Rf8h8]} 48. Kh2 {[%emt 0:00:36]} Rh8# {[%emt 0:33:13] Weighted Error Value: White=0.56/Black=0.29 (precise)} 0-1

[Event "11th Festival Palmanova-A 2022"]
[Site "Strassoldo"]
[Date "2022.12.11"]
[Round "6.1"]
[White "Zuttioni, Federico"]
[Black "Loiacono, Leonardo"]
[Result "0-1"]
[ECO "C54"]
[WhiteElo "2165"]
[BlackElo "2271"]
[Annotator "TA"]
[PlyCount "80"]
[EventDate "2022.12.08"]
[EventType "swiss"]
[EventCountry "ITA"]
[SourceTitle "playchess.com"]
[Source "ChessBase"]
[SourceQuality "1"]
[TimeControl "5400+30"]

{[%evp 12,80,10,6,11,7,15,9,8,5,9,0,0,0,0,0,0,0,33,0,26,30,47,39,42,51,68,0,0,0,0,-46,-40,-27,-29,-60,-71,-65,-58,-138,-154,-168,-112,-164,-119,-217,-219,-200,-214,-462,-449,-457,-432,-443,-313,-363,-119,-114,-129,-200,-200,-305,-297,-472,0,0,0,0,0,-98,-44]} 1. e4 {[%emt 0:00:04]} e5 {[%emt 0:00:05]} 2. Nf3 {[%emt 0:00:07]} Nc6 {[%emt 0:00:03]} 3. Bc4 {[%emt 0:00:12]} Bc5 {[%emt 0:00:05]} 4. O-O {[%emt 0:00:10]} Nf6 {[%emt 0:00:05]} 5. d3 {[%emt 0:00:08]} O-O {[%emt 0:00:10]} 6. h3 {[%emt 0:00:08]} d6 {[%emt 0:02:12]} 7. c3 {[%emt 0:00:21]} a5 {[%emt 0:01:39] now supersedes 7...h6. C54: Giuoco Piano: 4 c3 Nf6, main lines with 5 d4 and 5 d3.} 8. Re1 {[%emt 0:01:17]} h6 {[%emt 0:04:20]} 9. Nbd2 {[%emt 0:16:38]} Be6 {[%emt 0:06:35] The position is equal.} 10. Bb5 {[%emt 0:01:26]} Qb8 {[%emt 0:00:53]} 11. Bxc6 {[%emt 0:06:22]} bxc6 {[%emt 0:00:14]} 12. d4 {[%emt 0:00:10]} exd4 {[%emt 0:01:03]} 13. cxd4 {[%emt 0:00:23]} Ba7 {[%emt 0:05:10]} 14. Qc2 {[%emt 0:03:00]} Qb5 {[%emt 0:03:05] [#]} 15. b3 $146 {[%emt 0:04:46]} (15. a4 {is more complex.} Qb4 16. b3 Bxd4 17. Ba3) ({Predecessor:} 15. a4 Qb7 16. Ra3 Rab8 17. Rc3 Qb4 18. Rxc6 Bxd4 19. Nxd4 Qxd4 20. b3 Qb4 21. Re3 {½-½ (88) Giri,A (2769)-Antipov,M (2549) Moscow 2019}) 15... Rfe8 {[%emt 0:11:52][%cal Oa5a4]} 16. a4 {[%emt 0:06:08]} Qa6 {[%emt 0:01:52]} 17. Bb2 {[%emt 0:03:25]} d5 {[%emt 0:19:34]} 18. e5 {[%emt 0:08:10]} Nh5 {[%emt 0:00:43]} 19. Kh2 {[%emt 0:06:28]} (19. Re3 $14) 19... Nf4 $11 {[%emt 0:07:07]} 20. Re3 {[%emt 0:00:52] Prevents Nd3.} Qc8 {[%emt 0:08:19][%cal Re6h3]} 21. Ne1 {[%emt 0:15:23]} (21. Nh4 $11 {is superior.}) 21... c5 $1 $36 {[%emt 0:08:06][%mdl 2048] Black has the initiative.} 22. dxc5 {[%emt 0:06:26]} Bf5 {[%emt 0:00:06]} 23. Qc1 {[%emt 0:02:40]} Ne6 {[%emt 0:03:50][%mdl 1024] Black has compensation.} 24. Ba3 {[%emt 0:02:11]} c6 {[%emt 0:03:02]} 25. g4 {[%emt 0:07:21]} (25. Rg3 $15) 25... Bh7 $1 $17 {[%emt 0:00:44]} 26. Ng2 {[%emt 0:00:25]} g5 {[%emt 0:01:06] Against f4} (26... Qc7 $19 27. Nf3 Be4) 27. Nf3 {[%emt 0:01:19] Prevents f6.} (27. Kg1 $17) 27... Qd8 {[%emt 0:04:29]} 28. h4 {[%emt 0:03:50]} (28. Qb2 $17 {might work better.}) 28... d4 $19 {[%emt 0:01:59]} 29. Re1 {[%emt 0:00:50]} Qd5 {[%emt 0:00:14][%csl LRb3,LRc5,LRf3]} 30. Kg3 {[%emt 0:00:53]} (30. Nd2) 30... Be4 {[%emt 0:01:22]} (30... Qxb3 $2 31. hxg5 hxg5 32. Bb2 Bxc5 33. Ba3 $19) (30... Bxc5 31. hxg5 Rab8 32. Nf4 Nxf4 33. Qxf4 Rxb3 34. Bxc5 hxg5 35. Qf6 (35. Qxg5+ Bg6 $11) 35... Qxc5 36. Rac1 $11) 31. Rxe4 {[%emt 0:00:34]} Qxe4 {[%emt 0:00:04]} 32. hxg5 {[%emt 0:00:11]} hxg5 {[%emt 0:02:10]} 33. Nxg5 {[%emt 0:00:49]} Nxg5 {[%emt 0:00:04]} (33... Qxe5+ $19 {is more deadly.} 34. f4 Qd5) 34. Qxg5+ $17 {[%emt 0:00:07] [#]} Qg6 $1 {[%emt 0:00:03] Black is more active.} 35. Qd2 {[%emt 0:02:51]} (35. Qxg6+ $17 fxg6 36. f4) 35... Rxe5 $19 {[%emt 0:00:49]} 36. Rh1 {[%emt 0:01:46]} (36. Nf4 $142 Qf6 37. Bb2 (37. Qxd4 $2 {perishes.} Rd8 $19) 37... Bxc5 38. Bxd4 Bxd4 39. Qxd4) 36... f5 {[%emt 0:02:17] The board is on fire.} (36... Bxc5 $2 37. Bxc5 Rd8 38. Bxd4 $18) ({And not} 36... Re4 37. f3 Bb8+ 38. Kf2 $11) 37. Qxd4 {[%emt 0:00:35] [#]} (37. Rh4 $142 Bb8 38. f4) 37... Qxg4+ $2 {[%emt 0:02:34]} ({Better is} 37... Bb8 $1 $19 {( -> ...Re3+)} 38. Kh3 Ra7) 38. Qxg4+ $11 {[%emt 0:00:02]} fxg4 {[%emt 0:00:04]} 39. Bb2 {[%emt 0:00:21]} Ree8 {[%emt 0:00:25]} (39... Rxc5 $2 40. Rh8+ (40. Kxg4 Rf8 $16) 40... Kf7 41. Rxa8 $18) 40. Bd4 {[%emt 0:00:52]} (40. Kxg4 $11 {keeps the balance.} Bxc5 41. Nf4) 40... Bb8+ {[%emt 0:00:15] Weighted Error Value: White=0.45/Black=0.42} (40... Rad8 $17 41. Rh8+ Kf7 42. Rh7+ Ke6) 0-1

[Event "11th Festival Palmanova-A 2022"]
[Site "Strassoldo"]
[Date "2022.12.11"]
[Round "6.2"]
[White "Damia, Angelo"]
[Black "Lumachi, Gabriele"]
[Result "1/2-1/2"]
[ECO "D43"]
[WhiteElo "2192"]
[BlackElo "2394"]
[Annotator "TA"]
[PlyCount "50"]
[EventDate "2022.12.08"]
[EventType "swiss"]
[EventCountry "ITA"]
[SourceTitle "playchess.com"]
[Source "ChessBase"]
[SourceQuality "1"]
[TimeControl "5400+30"]

{[%evp 12,50,11,-11,-16,-18,-27,-34,-21,-25,-23,-77,-13,-56,68,64,64,82,119,111,124,124,108,54,48,64,52,45,41,58,73,64,92,90,72,55,57,0,88,0,65]} 1. d4 {[%emt 0:00:03]} d5 {[%emt 0:01:24]} 2. c4 {[%emt 0:00:06]} e6 {[%emt 0:00:08]} 3. Nc3 {[%emt 0:00:03]} Nf6 {[%emt 0:00:19]} 4. Nf3 {[%emt 0:01:09]} dxc4 {[%emt 0:02:19]} 5. Qa4+ {[%emt 0:07:16]} c6 {[%emt 0:01:17][%cal Bc7c6,Bc6c5][%mdl 32]} 6. Qxc4 {[%emt 0:00:06]} b5 {[%emt 0:00:08]} 7. Qb3 {[%emt 0:01:48]} Nbd7 {[%emt 0:09:04] D43: Semi-Slav: 5 Bg5 h6.} 8. Bf4 {[%emt 0:05:54]} a6 {[%emt 0:08:41]} 9. g3 {[%emt 0:10:20]} c5 {[%emt 0:02:01] Black is slightly better.} 10. Bg2 {[%emt 0:02:39] Strongly threatening Ne5.} Bb7 {[%emt 0:00:32] [#] White must now prevent ...cxd4.} 11. Rd1 $146 {[%emt 0:16:55]} (11. dxc5 $11 Bxc5 12. O-O) ({Predecessor:} 11. e3 Nd5 12. O-O Nxf4 13. exf4 c4 14. Qc2 Nf6 15. f5 exf5 16. Rfe1+ Be7 17. Ne5 Bxg2 18. Kxg2 {½-½ (56) Setyukov,R (1916)-Mukhutdinov,T (2162) Kazan 2017}) 11... Qa5 {[%emt 0:10:18]} (11... c4 $17 12. Qc2 b4) 12. O-O {[%emt 0:03:50][%cal Od4d5]} b4 {[%emt 0:00:16] Inhibits d5.} (12... c4 $15 13. Qc2 b4) 13. Qa4 $36 {[%emt 0:03:56][%mdl 2048] White has good play.} Qxa4 {[%emt 0:29:10]} 14. Nxa4 {[%emt 0:00:05]} Nd5 {[%emt 0:00:17]} 15. Ne5 {[%emt 0:05:54]} Nxe5 {[%emt 0:00:38]} 16. Bxe5 {[%emt 0:00:09]} f6 {[%emt 0:02:23]} 17. e4 {[%emt 0:13:30]} (17. Bc7 $1 $16) 17... fxe5 {[%emt 0:06:26]} 18. exd5 {[%emt 0:00:04]} exd4 {[%emt 0:04:07]} 19. Rfe1 {[%emt 0:01:06]} Rd8 $1 {[%emt 0:00:57]} 20. Nb6 {[%emt 0:15:26]} Be7 {[%emt 0:03:58][%cal Re6d5]} 21. Rxe6 {[%emt 0:02:25] [#] Hoping for Rde1.} Kf7 {[%emt 0:00:36]} 22. Rde1 {[%emt 0:00:58] White has more active pieces.} Bf6 {[%emt 0:00:44]} 23. Rc1 {[%emt 0:01:16]} Be7 {[%emt 0:02:59]} 24. Rce1 {[%emt 0:00:17]} Bf6 {[%emt 0:01:27]} 25. Rc1 {[%emt 0:00:05]} Be7 {[%emt 0:02:12] Weighted Error Value: White=0.20 (precise) /Black=0.18 (very precise)} 1/2-1/2

[Event "11th Festival Palmanova-A 2022"]
[Site "Strassoldo"]
[Date "2022.12.11"]
[Round "6.3"]
[White "Ceschia, Ivano"]
[Black "Lekic, Dusan"]
[Result "0-1"]
[ECO "D12"]
[WhiteElo "2217"]
[BlackElo "2329"]
[Annotator "TA"]
[PlyCount "138"]
[EventDate "2022.12.08"]
[EventType "swiss"]
[EventCountry "ITA"]
[SourceTitle "playchess.com"]
[Source "ChessBase"]
[SourceQuality "1"]
[TimeControl "5400+30"]

{[%evp 18,138,18,18,8,-5,-20,-21,-14,-14,-13,-12,-20,-20,-15,-17,-8,-26,4,-45,-56,-62,-72,-57,0,0,0,0,4,-9,-7,-6,-6,-27,-25,-69,-7,-12,-10,-12,-8,-11,-10,-9,-11,-12,-11,-20,0,-8,0,0,0,-18,-24,-18,-9,-8,-6,-12,-8,-25,-34,-88,-18,-18,-18,-30,-18,-19,-19,-120,-124,-130,-113,-123,-110,-146,-29,-29,-29,-29,-29,-29,-29,-29,-29,-29,-29,-33,-33,-42,-42,-69,-69,-69,-8,-8,0,-56,-56,-56,-56,-56,-56,-56,-56,-56,-56,-29964,-29964,-29971,0,-29973,-29966,-29972,-29975,-29975,-29976,-29970,-29972,-29974,-4622]} 1. Nf3 {[%emt 0:06:02]} d5 {[%emt 0:01:12]} 2. d4 {[%emt 0:00:08]} Nf6 {[%emt 0:00:46]} 3. e3 {[%emt 0:00:17]} c6 {[%emt 0:01:17]} 4. c4 {[%emt 0:01:21]} Bf5 {[%emt 0:01:15]} 5. Nc3 {[%emt 0:00:21]} e6 {[%emt 0:00:19]} 6. Bd3 {[%emt 0:04:52]} Bxd3 {[%emt 0:02:11]} 7. Qxd3 {[%emt 0:00:05]} Bb4 {[%emt 0:00:22]} 8. O-O {[%emt 0:01:03]} Nbd7 {[%emt 0:01:55]} 9. Bd2 {[%emt 0:06:26]} a5 {[%emt 0:02:13]} 10. a3 {[%emt 0:24:46]} Be7 {[%emt 0:01:24] D12: Slav Defence: 3 Nf3 Nf6 4 e3 Bf5.} 11. e4 {[%emt 0:00:49] [#]} Nc5 $1 {[%emt 0:09:45]} 12. dxc5 {[%emt 0:06:53]} dxe4 {[%emt 0:00:24] The position is equal.} 13. Qxd8+ {[%emt 0:00:08]} Rxd8 {[%emt 0:00:12]} 14. Nxe4 {[%emt 0:00:06]} Nxe4 {[%emt 0:00:16]} 15. Bxa5 {[%emt 0:00:04]} Ra8 {[%emt 0:01:28]} 16. Bb6 {[%emt 0:09:09]} Nxc5 {[%emt 0:01:29] [#]} (16... Bxc5 {simplifies} 17. Bxc5 Nxc5 18. b4 Na4) 17. Rad1 $146 {[%emt 0:04:48]} ({Predecessor:} 17. Bxc5 Bxc5 18. Rfd1 Be7 19. Rd2 Rd8 20. Rad1 Rxd2 21. Rxd2 Bf6 22. Kf1 Ke7 23. Ke2 {0-1 (49) Ankit,R (2122)-Sundararajan,K (2442) New Delhi 2008}) 17... Ra4 {[%emt 0:06:03]} (17... Na4 $5 {[%cal Ra4b6]} 18. Bd4 Bf6 $11) 18. Rd4 {[%emt 0:07:26]} (18. Bxc5 $11 Bxc5 19. Rd2) 18... Nd7 $1 $15 {[%emt 0:07:33]} 19. Bc7 {[%emt 0:00:11]} Bf6 {[%emt 0:02:17]} 20. Rd2 {[%emt 0:02:01]} Nc5 {[%emt 0:04:56]} (20... Rxc4 $15 21. Rfd1 Nc5) 21. Rc2 $11 {[%emt 0:18:03]} Nb3 {[%emt 0:07:57]} 22. Rd1 {[%emt 0:00:19]} c5 {[%emt 0:00:48]} 23. Rd3 {[%emt 0:01:36]} Nd4 {[%emt 0:01:21]} 24. Nxd4 {[%emt 0:00:02]} Bxd4 {[%emt 0:00:07]} 25. b4 {[%emt 0:00:21]} Ke7 {[%emt 0:05:21]} 26. Bb6 {[%emt 0:00:02]} Rc8 {[%emt 0:01:39]} (26... Rha8 $15 27. Bxc5+ Bxc5 28. bxc5 Rxa3 29. Rxa3 Rxa3) 27. Kf1 {[%emt 0:00:24]} Rc6 {[%emt 0:08:15]} 28. Bxc5+ {[%emt 0:00:31]} Bxc5 {[%emt 0:00:11]} 29. bxc5 {[%emt 0:00:09]} Rxc5 {[%emt 0:00:11][%cal Ob7b5][%mdl 4096] Endgame KRR-KRR} 30. Rb2 {[%emt 0:01:07] Inhibits b5.} Rc7 {[%emt 0:00:59]} 31. Rdb3 {[%emt 0:00:12]} Ra7 {[%emt 0:04:36]} 32. Ke2 {[%emt 0:00:04]} Rd7 {[%emt 0:03:08]} 33. Rd2 {[%emt 0:00:41]} h5 {[%emt 0:01:40]} 34. Rxd7+ {[%emt 0:02:39]} Kxd7 {[%emt 0:00:07] KR-KR} 35. Kd2 {[%emt 0:00:15]} Kc6 {[%emt 0:00:35]} 36. Kc3 {[%emt 0:00:58]} b6 {[%emt 0:01:43]} 37. Kb4 {[%emt 0:00:25]} Rd7 {[%emt 0:00:22]} 38. Rf3 {[%emt 0:00:58]} f6 {[%emt 0:01:45]} 39. Re3 {[%emt 0:00:44]} e5 {[%emt 0:00:25]} 40. Re2 {[%emt 0:00:53]} (40. Rg3 $15) 40... Rd4 {[%emt 0:02:01]} (40... Rd1 $17 41. Rb2 h4) 41. a4 {[%emt 0:00:03]} Rd1 {[%emt 0:03:25]} 42. Ra2 $1 {[%emt 0:00:34]} Rb1+ {[%emt 0:00:55]} 43. Kc3 {[%emt 0:00:08]} h4 {[%emt 0:01:47]} 44. a5 {[%emt 0:00:44]} (44. h3 $1 $11) 44... bxa5 $1 $17 {[%emt 0:00:33]} 45. Rxa5 {[%emt 0:00:02]} Rg1 $1 {[%emt 0:00:40]} 46. g3 {[%emt 0:01:05] [#]} Rg2 $1 {[%emt 0:00:29][%csl LRf2,LRh2] ...h3 is the strong threat.} 47. gxh4 {[%emt 0:00:56]} Rxh2 {[%emt 0:00:31]} (47... Rxf2 $17 48. Ra7 Rxh2 49. Rxg7 Rh3+ 50. Kb4 Rxh4) 48. Ra7 $11 {[%emt 0:00:44]} Rxh4 {[%emt 0:00:29]} 49. Rxg7 {[%emt 0:00:19]} Rf4 {[%emt 0:02:30]} 50. Rg2 {[%emt 0:00:09]} Kc5 {[%emt 0:01:09]} 51. Kd3 {[%emt 0:00:10]} f5 {[%emt 0:00:30]} 52. Ke3 {[%emt 0:00:37]} Rxc4 {[%emt 0:00:58]} 53. Rg8 {[%emt 0:00:26]} Rc3+ {[%emt 0:00:47]} 54. Kd2 {[%emt 0:00:04]} Ra3 {[%emt 0:00:57]} 55. Rd8 {[%emt 0:01:11][%cal Of2f4]} f4 {[%emt 0:00:43]} 56. Ke2 {[%emt 0:01:01]} f3+ {[%emt 0:02:35]} ({Black should play} 56... e4 $15) 57. Kd2 $1 {[%emt 0:00:04]} e4 {[%emt 0:00:10]} 58. Rc8+ {[%emt 0:01:19]} (58. Rd7 $1 $11) 58... Kd4 $15 {[%emt 0:00:40]} 59. Rd8+ {[%emt 0:00:13]} Ke5 $1 {[%emt 0:00:09]} 60. Re8+ {[%emt 0:00:02]} Kf4 $1 {[%emt 0:00:20][%cal Oe4e3] Hoping for ...e3+!} 61. Rf8+ {[%emt 0:00:05]} Kg4 {[%emt 0:00:09]} 62. Rg8+ {[%emt 0:00:53]} Kh3 $1 {[%emt 0:00:41] ( -> ...Kh2)} 63. Rg3+ $2 {[%emt 0:02:07][%mdl 8192] [#]} (63. Ke1 $15) 63... Kh2 $1 {[%emt 0:00:08]} 64. Rg4 {[%emt 0:00:06]} Ra2+ $2 {[%emt 0:01:08]} (64... e3+ {mates} 65. fxe3 Ra1 66. Rh4+ Kg2 67. Rg4+ Kh2 68. e4 f2 69. Rf4 Kg3 70. Rxf2 Kxf2 71. Kd3 Kf3 72. e5 Re1 73. Kd4 Kf4 74. e6 Rxe6 75. Kd5 Re4 76. Kd6 Re5 77. Kc6 Kf5 78. Kd6 Kf6 79. Kd7 Re6 80. Kd8 Re7 81. Kc8 Ke5 82. Kd8 Kd6 83. Kc8 Kc6 84. Kb8 Re8+ 85. Ka7 Rd8 86. Ka6 Ra8#) 65. Ke1 $2 {[%emt 0:00:07][%mdl 8192]} (65. Ke3 $11) 65... Ra1+ {[%emt 0:00:12] Black mates.} 66. Kd2 {[%emt 0:00:10]} Rg1 {[%emt 0:00:39]} 67. Rxe4 {[%emt 0:02:06]} Kg2 {[%emt 0:01:04]} 68. Re7 {[%emt 0:01:04]} Kxf2 {[%emt 0:00:10]} 69. Re8 {[%emt 0:00:33]} Rg7 {[%emt 0:00:17] Weighted Error Value: White=0.11 (very precise) /Black=0.13 (very precise)} (69... Kf1 $142 70. Ra8 f2 71. Ra2 Rg3 72. Ra1+ Kg2 73. Ke2 Rg7 74. Rc1 Rg5 75. Rb1 f1=Q+ 76. Rxf1 Re5+ 77. Kd3 Kxf1 78. Kd4 Rh5 79. Ke3 Rh4 80. Kf3 Ra4 81. Ke3 Ke1 82. Kd3 Kf2 83. Kc2 Ke3 84. Kb3 Re4 85. Kc2 Rc4+ 86. Kb3 Kd3 87. Kb2 Rb4+ 88. Ka3 Kc3 89. Ka2 Ra4+ 90. Kb1 Ra7 91. Kc1 Ra1#) 0-1